{"text_format":"3","workbook":"xlsx","n_sheets":1,"sheets":["Plán svátečního rozpočtu"],"not_rendered":{"defined_names":1},"read":"whole","date_system":"1900"}

{"sheet":"Plán svátečního rozpočtu","index":0,"n_rows":37,"n_cols":12,"rows_kept":37,"merged":[[1,1,7,4],[9,1,9,4],[9,8,9,11],[19,1,19,4],[19,8,19,11],[30,1,30,4],[30,8,30,11]]}
[]
[null,"Plán Svátečního Rozpočtu"]
[]
[{"$nulls":8},"ROZPOČET NA SVÁTKY",null,{"$f":"SUM(Dary[Rozpočet],Balení[Rozpočet],(Cestování[Rozpočet],(Stravování[Rozpočet],(Zábava[Rozpočet],Různé[Rozpočet]))))","v":{"v":750,"d":"750.00 Kč"}}]
[{"$nulls":8},"SKUTEČNÉ VÝDAJE",null,{"$f":"SUM((Dary[Skutečnost],(Balení[Skutečnost],(Cestování[Skutečnost],(Stravování[Skutečnost],(Zábava[Skutečnost],(Různé[Skutečnost])))))))","v":{"v":820,"d":"820.00 Kč"}}]
[]
[{"$nulls":8},"ROZDÍL (rozpočet překročen/nevyužit)",null,{"$f":"SUM(K4-K5)","v":{"v":-70,"d":"-70.00 Kč"}}]
[]
[]
[null,"Dárky",{"$nulls":6},"Sváteční jídlo"]
[null,"Položka","Rozpočet","Skutečnost","Rozdíl",{"$nulls":3},"Položka","Rozpočet","Skutečnost","Rozdíl"]
[null,"Rodina",{"v":500,"d":"500.00 Kč"},{"v":495,"d":"495.00 Kč"},{"$f":"Dary[[#This Row],[Rozpočet]]-Dary[[#This Row],[Skutečnost]]","v":{"v":5,"d":"5.00 Kč"}},{"$nulls":3},"Potraviny",null,null,{"$f":"Stravování[[#This Row],[Rozpočet]]-Stravování[[#This Row],[Skutečnost]]","v":{"v":0,"d":"0.00 Kč"}}]
[null,"Přátelé",{"v":250,"d":"250.00 Kč"},{"v":325,"d":"325.00 Kč"},{"$f":"Dary[[#This Row],[Rozpočet]]-Dary[[#This Row],[Skutečnost]]","v":{"v":-75,"d":"-75.00 Kč"}},{"$nulls":3},"Nápoje",null,null,{"$f":"Stravování[[#This Row],[Rozpočet]]-Stravování[[#This Row],[Skutečnost]]","v":{"v":0,"d":"0.00 Kč"}}]
[null,"Kolegové",null,null,{"$f":"Dary[[#This Row],[Rozpočet]]-Dary[[#This Row],[Skutečnost]]","v":{"v":0,"d":"0.00 Kč"}},{"$nulls":3},"Výzdoba",null,null,{"$f":"Stravování[[#This Row],[Rozpočet]]-Stravování[[#This Row],[Skutečnost]]","v":{"v":0,"d":"0.00 Kč"}}]
[null,"Učitelé, chůvy atd.",null,null,{"$f":"Dary[[#This Row],[Rozpočet]]-Dary[[#This Row],[Skutečnost]]","v":{"v":0,"d":"0.00 Kč"}},{"$nulls":3},"Další (Pokud chcete přidat řádek, stiskněte v posledním sloupci tohoto řádku klávesu Tab.)",null,null,{"$f":"Stravování[[#This Row],[Rozpočet]]-Stravování[[#This Row],[Skutečnost]]","v":{"v":0,"d":"0.00 Kč"}}]
[null,"Dobročinné dary",null,null,{"$f":"Dary[[#This Row],[Rozpočet]]-Dary[[#This Row],[Skutečnost]]","v":{"v":0,"d":"0.00 Kč"}},{"$nulls":3},"Celkem",{"$f":"SUBTOTAL(109,Stravování[Rozpočet])","v":{"v":0,"d":"0.00 Kč"}},{"$f":"SUBTOTAL(109,Stravování[Skutečnost])","v":{"v":0,"d":"0.00 Kč"}},{"$f":"SUBTOTAL(109,Stravování[Rozdíl])","v":{"v":0,"d":"0.00 Kč"}}]
[null,"Další (Pokud chcete přidat řádek, stiskněte v posledním sloupci tohoto řádku klávesu Tab.)",null,null,{"$f":"Dary[[#This Row],[Rozpočet]]-Dary[[#This Row],[Skutečnost]]","v":{"v":0,"d":"0.00 Kč"}}]
[null,"Celkem",{"$f":"SUBTOTAL(109,Dary[Rozpočet])","v":{"v":750,"d":"750.00 Kč"}},{"$f":"SUBTOTAL(109,Dary[Skutečnost])","v":{"v":820,"d":"820.00 Kč"}},{"$f":"SUBTOTAL(109,Dary[Rozdíl])","v":{"v":-70,"d":"-70.00 Kč"}}]
[]
[null,"Balení",{"$nulls":6},"Zábava"]
[null,"Položka","Rozpočet","Skutečnost","Rozdíl",{"$nulls":3},"Položka","Rozpočet","Skutečnost","Rozdíl"]
[null,"Balení dárků",null,null,{"$f":"Balení[[#This Row],[Rozpočet]]-Balení[[#This Row],[Skutečnost]]","v":{"v":0,"d":"0.00 Kč"}},{"$nulls":3},"Personál na večírku (obsluha baru, dodavatel občerstvení, úklid atd.)",null,null,{"$f":"Zábava[[#This Row],[Rozpočet]]-Zábava[[#This Row],[Skutečnost]]","v":{"v":0,"d":"0.00 Kč"}}]
[null,"Značky",null,null,{"$f":"Balení[[#This Row],[Rozpočet]]-Balení[[#This Row],[Skutečnost]]","v":{"v":0,"d":"0.00 Kč"}},{"$nulls":3},"Výzdoba",null,null,{"$f":"Zábava[[#This Row],[Rozpočet]]-Zábava[[#This Row],[Skutečnost]]","v":{"v":0,"d":"0.00 Kč"}}]
[null,"Spotřební materiál (stuha, lepicí páska atd.)",null,null,{"$f":"Balení[[#This Row],[Rozpočet]]-Balení[[#This Row],[Skutečnost]]","v":{"v":0,"d":"0.00 Kč"}},{"$nulls":3},"Potraviny a nápoje",null,null,{"$f":"Zábava[[#This Row],[Rozpočet]]-Zábava[[#This Row],[Skutečnost]]","v":{"v":0,"d":"0.00 Kč"}}]
[null,"Krabice",null,null,{"$f":"Balení[[#This Row],[Rozpočet]]-Balení[[#This Row],[Skutečnost]]","v":{"v":0,"d":"0.00 Kč"}},{"$nulls":3},"Oblečení",null,null,{"$f":"Zábava[[#This Row],[Rozpočet]]-Zábava[[#This Row],[Skutečnost]]","v":{"v":0,"d":"0.00 Kč"}}]
[null,"Poštovné",null,null,{"$f":"Balení[[#This Row],[Rozpočet]]-Balení[[#This Row],[Skutečnost]]","v":{"v":0,"d":"0.00 Kč"}},{"$nulls":3},"Vstupenky",null,null,{"$f":"Zábava[[#This Row],[Rozpočet]]-Zábava[[#This Row],[Skutečnost]]","v":{"v":0,"d":"0.00 Kč"}}]
[null,"Další (Pokud chcete přidat řádek, stiskněte v posledním sloupci tohoto řádku klávesu Tab.)",null,null,{"$f":"Balení[[#This Row],[Rozpočet]]-Balení[[#This Row],[Skutečnost]]","v":{"v":0,"d":"0.00 Kč"}},{"$nulls":3},"Jídlo mimo dům",null,null,{"$f":"Zábava[[#This Row],[Rozpočet]]-Zábava[[#This Row],[Skutečnost]]","v":{"v":0,"d":"0.00 Kč"}}]
[null,"Celkem",{"$f":"SUBTOTAL(109,Balení[Rozpočet])","v":{"v":0,"d":"0.00 Kč"}},{"$f":"SUBTOTAL(109,Balení[Skutečnost])","v":{"v":0,"d":"0.00 Kč"}},{"$f":"SUBTOTAL(109,Balení[Rozdíl])","v":{"v":0,"d":"0.00 Kč"}},{"$nulls":3},"Další (Pokud chcete přidat řádek, stiskněte v posledním sloupci tohoto řádku klávesu Tab.)",null,null,{"$f":"Zábava[[#This Row],[Rozpočet]]-Zábava[[#This Row],[Skutečnost]]","v":{"v":0,"d":"0.00 Kč"}}]
[{"$nulls":8},"Celkem",{"$f":"SUBTOTAL(109,Zábava[Rozpočet])","v":{"v":0,"d":"0.00 Kč"}},{"$f":"SUBTOTAL(109,Zábava[Skutečnost])","v":{"v":0,"d":"0.00 Kč"}},{"$f":"SUBTOTAL(109,Zábava[Rozdíl])","v":{"v":0,"d":"0.00 Kč"}}]
[]
[null,"Cestování",{"$nulls":6},"Různé"]
[null,"Položka","Rozpočet","Skutečnost","Rozdíl",{"$nulls":3},"Položka","Rozpočet","Skutečnost","Rozdíl"]
[null,"Letenky",null,null,{"$f":"Cestování[[#This Row],[Rozpočet]]-Cestování[[#This Row],[Skutečnost]]","v":{"v":0,"d":"0.00 Kč"}},{"$nulls":3},"Sváteční fotky",null,null,{"$f":"Různé[[#This Row],[Rozpočet]]-Různé[[#This Row],[Skutečnost]]","v":{"v":0,"d":"0.00 Kč"}}]
[null,"Ubytování",null,null,{"$f":"Cestování[[#This Row],[Rozpočet]]-Cestování[[#This Row],[Skutečnost]]","v":{"v":0,"d":"0.00 Kč"}},{"$nulls":3},"Palivo ",null,null,{"$f":"Různé[[#This Row],[Rozpočet]]-Různé[[#This Row],[Skutečnost]]","v":{"v":0,"d":"0.00 Kč"}}]
[null,"Doprava",null,null,{"$f":"Cestování[[#This Row],[Rozpočet]]-Cestování[[#This Row],[Skutečnost]]","v":{"v":0,"d":"0.00 Kč"}},{"$nulls":3},"Další (Pokud chcete přidat řádek, stiskněte v posledním sloupci tohoto řádku klávesu Tab.)",null,null,{"$f":"Různé[[#This Row],[Rozpočet]]-Různé[[#This Row],[Skutečnost]]","v":{"v":0,"d":"0.00 Kč"}}]
[null,"Další (Pokud chcete přidat řádek, stiskněte v posledním sloupci tohoto řádku klávesu Tab.)",null,null,{"$f":"Cestování[[#This Row],[Rozpočet]]-Cestování[[#This Row],[Skutečnost]]","v":{"v":0,"d":"0.00 Kč"}},{"$nulls":3},"Celkem",{"$f":"SUBTOTAL(109,Různé[Rozpočet])","v":{"v":0,"d":"0.00 Kč"}},{"$f":"SUBTOTAL(109,Různé[Skutečnost])","v":{"v":0,"d":"0.00 Kč"}},{"$f":"SUBTOTAL(109,Různé[Rozdíl])","v":{"v":0,"d":"0.00 Kč"}}]
[null,"Celkem",{"$f":"SUBTOTAL(109,Cestování[Rozpočet])","v":{"v":0,"d":"0.00 Kč"}},{"$f":"SUBTOTAL(109,Cestování[Skutečnost])","v":{"v":0,"d":"0.00 Kč"}},{"$f":"SUBTOTAL(109,Cestování[Rozdíl])","v":{"v":0,"d":"0.00 Kč"}}]